[Event "XIII Marques de Pombal 2022"]
[Site "Pombal"]
[Date "2022.10.06"]
[Round "4.1"]
[White "Goncalves, Lucas Jordao"]
[Black "Khamrakulov, Ibragim S."]
[Result "0-1"]
[ECO "B43"]
[WhiteElo "1849"]
[BlackElo "2421"]
[Annotator "TA"]
[PlyCount "72"]
[EventDate "2022.09.28"]
[EventType "swiss"]
[EventCountry "POR"]
[SourceTitle "playchess.com"]
[Source "ChessBase"]
[SourceQuality "1"]
[TimeControl "5400+30"]

{[%evp 11,72,13,45,24,28,40,32,32,35,5,2,-12,47,41,45,19,15,15,26,0,0,-31,-20,-53,-55,-56,-52,-54,-66,-87,-87,-119,-133,-179,-183,-285,-340,-337,-345,-345,-299,-384,-362,-346,-345,-372,-358,-437,-264,-266,-254,-29986,-29987,-29990,-29991,-29991,-29992,-29992,-29993,-29993,-29994,-29996,-491]} 1. e4 {[%emt 0:00:21]} c5 {[%emt 0:00:20]} 2. Nf3 {[%emt 0:00:09]} e6 {[%emt 0:00:47]} 3. d4 {[%emt 0:00:17]} cxd4 {[%emt 0:00:20]} 4. Nxd4 {[%emt 0:00:07]} a6 {[%emt 0:00:16]} 5. Nc3 {[%emt 0:00:09]} Qc7 {[%emt 0:00:13]} 6. g3 {[%emt 0:00:21]} Nc6 {[%emt 0:01:29]} 7. Nxc6 {[%emt 0:07:31] B47: Sicilian: Taimanov: 5 Nc3 Qc7 6 f4, 6 g3 and 6 Be2.} bxc6 {[%emt 0:01:12]} 8. Bg2 {[%emt 0:00:37]} Nf6 {[%emt 0:08:37]} 9. O-O {[%emt 0:03:51] White is slightly better.} Be7 {[%emt 0:02:23]} 10. Be3 {[%emt 0:05:32]} d5 {[%emt 0:04:42]} 11. f4 {[%emt 0:02:55] [#]} dxe4 $146 {[%emt 0:06:20]} (11... Bb7 $11) ({Predecessor:} 11... O-O 12. e5 Nd7 13. Qg4 Bc5 14. Bxc5 Nxc5 15. Rae1 Qb6 {1-0 (30) Kochman,D-Terrie,H (1990) Manchester 2017}) 12. Nxe4 $14 {[%emt 0:00:35]} O-O {[%emt 0:00:19]} 13. Nxf6+ {[%emt 0:00:54]} Bxf6 {[%emt 0:00:22]} 14. c3 {[%emt 0:00:07]} Rb8 {[%emt 0:02:52]} 15. Qc2 {[%emt 0:00:28]} c5 {[%emt 0:01:19][%cal Bc6c5,Bc5c4][%mdl 32]} 16. b3 {[%emt 0:18:58]} Bb7 {[%emt 0:10:58]} 17. Rad1 {[%emt 0:18:28]} Bxg2 {[%emt 0:03:30]} 18. Kxg2 {[%emt 0:00:11]} c4 {[%emt 0:00:21]} 19. b4 {[%emt 0:05:45]} Rfd8 {[%emt 0:03:19]} 20. a4 {[%emt 0:01:59] White is on the road to losing.} h5 {[%emt 0:03:45][%cal Bh7h5,Bh5h4,Bh4h3][%mdl 32]} 21. a5 {[%emt 0:01:42]} Qc6+ {[%emt 0:02:36]} 22. Kf2 {[%emt 0:00:11] [#]} (22. Kg1 $17) 22... h4 $1 $19 {[%emt 0:00:32]} 23. g4 {[%emt 0:00:51] [#]} (23. Rxd8+ {was necessary.} Rxd8 24. Bd4 (24. Kg1 $2 Rd3 $19)) 23... h3 $1 {[%emt 0:01:33] ( -> ...Qg2+)} 24. Kg3 {[%emt 0:01:14] Inhibits Qg2+.} Rd3 $1 {[%emt 0:00:26]} 25. Rxd3 {[%emt 0:06:26]} cxd3 {[%emt 0:00:21]} 26. Qd2 {[%emt 0:00:04]} Bxc3 {[%emt 0:02:44][%cal Bf6c3,Bc3b4,Bb4e7,Be7d6][%mdl 32]} 27. Qxd3 {[%emt 0:00:17]} Qg2+ {[%emt 0:03:14]} ({Worse is} 27... Bxb4 28. Kxh3 Bxa5 29. Kg3 $17) 28. Kh4 {[%emt 0:00:05]} Bxb4 {[%emt 0:02:55] ...Be7+ is the strong threat.} 29. Bb6 {[%emt 0:01:15]} Qxh2 {[%emt 0:04:02] Hoping for ...Rc8.} 30. Qxh3 {[%emt 0:03:01]} Qd2 {[%emt 0:01:13] Threatens to win with ...g5+.} 31. f5 $2 {[%emt 0:15:47]} (31. Qe3 $19) 31... Be7+ {[%emt 0:01:15] Black mates.} 32. Kg3 {[%emt 0:00:24]} Bd6+ {[%emt 0:00:11]} 33. Kf3 {[%emt 0:01:57]} Rc8 {[%emt 0:00:25]} 34. Rf2 {[%emt 0:03:13]} Qd5+ {[%emt 0:00:09]} 35. Ke2 {[%emt 0:00:08]} Rc2+ {[%emt 0:00:06]} 36. Kf1 {[%emt 0:00:29]} Rc1+ {[%emt 0:00:06] Weighted Error Value: White=0.44/Black=0.12 (very precise)} 0-1

[Event "XIII Marques de Pombal 2022"]
[Site "Pombal"]
[Date "2022.10.07"]
[Round "4.2"]
[White "Figueiredo, Mario Jose da Rocha"]
[Black "Povshednyi, Ivan"]
[Result "1/2-1/2"]
[ECO "D37"]
[WhiteElo "1842"]
[BlackElo "2140"]
[Annotator "TA"]
[PlyCount "92"]
[EventDate "2022.09.28"]
[EventType "swiss"]
[EventCountry "POR"]
[SourceTitle "playchess.com"]
[Source "ChessBase"]
[SourceQuality "1"]
[TimeControl "5400+30"]

{[%evp 18,92,-16,-15,-20,-30,-29,-35,-33,-22,-10,-86,-27,-59,-83,-93,-100,-96,-87,-102,-91,-148,-124,-126,-139,-125,-58,-53,-45,-46,-46,-69,-65,-47,0,-43,-45,-50,-6,-6,-8,-11,-7,-17,-1,-48,-48,-48,-22,-20,-14,-24,-24,-31,0,0,0,0,0,0,0,0,0,0,0,0,0,0,0,0,0,0,0,0,0,0,0]} 1. d4 {[%emt 0:00:10]} Nf6 {[%emt 0:00:12]} 2. Nf3 {[%emt 0:00:04]} e6 {[%emt 0:00:18]} 3. c4 {[%emt 0:00:10]} d5 {[%emt 0:00:10]} 4. Nc3 {[%emt 0:00:15]} dxc4 {[%emt 0:00:16]} 5. e3 {[%emt 0:01:24]} a6 {[%emt 0:00:14]} 6. Bxc4 {[%emt 0:00:09]} b5 {[%emt 0:00:08]} 7. Bd3 {[%emt 0:01:04]} Bb7 {[%emt 0:00:21]} 8. O-O {[%emt 0:00:37]} c5 {[%emt 0:00:28]} 9. dxc5 {[%emt 0:01:01]} Bxc5 {[%emt 0:00:17]} 10. Qe2 {[%emt 0:01:16][%cal Od3b5]} Nbd7 {[%emt 0:05:17] D27: Queen's Gambit Accepted: Classical main line: 7 e4!? and 7 a4.} 11. Rd1 {[%emt 0:02:13]} O-O {[%emt 0:01:31]} 12. h3 {[%emt 0:01:52]} Qc7 {[%emt 0:05:08] Black is slightly better.} 13. e4 {[%emt 0:06:57]} Ne5 {[%emt 0:10:42] [#]} 14. Bg5 $146 {[%emt 0:20:34] [#]} (14. Nxe5 $11 Qxe5 15. Be3) ({Predecessor:} 14. Bf4 Bd6 15. Bxe5 Bxe5 16. Rac1 Qb8 17. Nxe5 Qxe5 18. Bb1 Rad8 19. Rxd8 Rxd8 20. Rd1 {½-½ (27) Wichmann,C (2280)-Pajeken,J (2475) Magdeburg 2022}) 14... h6 {[%emt 0:18:11]} (14... b4 $1 $17 {[%cal Rb4c3]} 15. Bxf6 gxf6) 15. Bxf6 {[%emt 0:12:45]} gxf6 {[%emt 0:00:03]} 16. Bc2 {[%emt 0:07:08]} Nxf3+ {[%emt 0:14:24]} 17. Qxf3 {[%emt 0:03:48]} Qe5 {[%emt 0:00:55]} 18. Rd3 {[%emt 0:07:00]} Kh8 {[%emt 0:06:58] Threatens to win with ...b4.} 19. Qg3 {[%emt 0:02:47]} (19. a3 $142) 19... Qxg3 $17 {[%emt 0:03:12]} 20. Rxg3 {[%emt 0:00:08]} Rac8 {[%emt 0:02:00]} 21. a3 {[%emt 0:05:05]} Rfd8 {[%emt 0:03:00]} ({Better is} 21... a5 $17 22. Bd3 Bd6) 22. Rd3 $15 {[%emt 0:03:47]} Rxd3 {[%emt 0:02:08]} 23. Bxd3 {[%emt 0:00:06]} Bd4 {[%emt 0:06:27]} 24. Rc1 {[%emt 0:04:12]} Rd8 {[%emt 0:00:56][%cal Od4f2]} 25. Bc2 {[%emt 0:04:35]} Rc8 {[%emt 0:08:48]} 26. Bd3 {[%emt 0:01:01]} Rc5 {[%emt 0:01:23]} 27. Rc2 {[%emt 0:02:04]} Bc6 {[%emt 0:02:08]} 28. Nd1 {[%emt 0:03:05]} Rxc2 {[%emt 0:01:10]} 29. Bxc2 $11 {[%emt 0:00:02][%mdl 4096] Endgame KBB-KBN} Kg7 {[%emt 0:03:14]} 30. Kf1 {[%emt 0:00:08]} Kf8 {[%emt 0:00:27]} 31. Ke2 {[%emt 0:00:55]} (31. b4 $11) 31... f5 $15 {[%emt 0:01:03]} 32. f3 {[%emt 0:00:21]} fxe4 {[%emt 0:00:38]} 33. Bxe4 {[%emt 0:02:47]} Bxe4 {[%emt 0:00:13]} 34. fxe4 {[%emt 0:00:06] KB-KN} Ke7 {[%emt 0:00:23]} 35. Kd3 {[%emt 0:00:51]} e5 {[%emt 0:00:58]} 36. b3 {[%emt 0:00:55] The position is equal.} Kf6 {[%emt 0:01:06]} 37. Ne3 {[%emt 0:00:43]} Bxe3 {[%emt 0:00:35]} 38. Kxe3 $11 {[%emt 0:00:01] KP-KP} Kg5 {[%emt 0:00:31]} 39. g3 {[%emt 0:01:16]} a5 {[%emt 0:00:43][%cal Ba6a5,Ba5a4][%mdl 32]} 40. Kf3 {[%emt 0:00:55]} a4 {[%emt 0:03:15]} 41. b4 {[%emt 0:00:12]} f6 {[%emt 0:00:37]} 42. Ke3 {[%emt 0:00:49]} Kh5 {[%emt 0:00:25]} 43. Kf3 {[%emt 0:00:19]} Kg5 $1 {[%emt 0:00:02]} 44. Ke3 {[%emt 0:00:15]} Kh5 {[%emt 0:00:45]} 45. Kf3 {[%emt 0:00:06]} Kg5 $1 {[%emt 0:00:08]} 46. Ke3 {[%emt 0:00:14]} Kh5 {[%emt 0:00:56] Weighted Error Value: White=0.12 (very precise) /Black=0.09 (flawless)} 1/2-1/2

[Event "XIII Marques de Pombal 2022"]
[Site "Pombal"]
[Date "2022.10.06"]
[Round "4.3"]
[White "Goncalves, Samuel Jesus Pereira"]
[Black "Farias, David Nuno Moita Est"]
[Result "*"]
[WhiteElo "2072"]
[BlackElo "1863"]
[Annotator "TA"]
[PlyCount "39"]
[EventDate "2022.09.28"]
[EventType "swiss"]
[EventCountry "POR"]
[SourceTitle "playchess.com"]
[Source "ChessBase"]
[SourceQuality "1"]
[TimeControl "5400+30"]

{[%evp 12,13,32,13]} 1. d4 {[%emt 0:00:31]} Nf6 {[%emt 0:00:06]} 2. c4 {[%emt 0:00:06]} g6 {[%emt 0:00:02]} 3. g3 {[%emt 0:00:55]} Bg7 {[%emt 0:00:09]} 4. Bg2 {[%emt 0:00:06]} d5 {[%emt 0:00:20]} 5. cxd5 {[%emt 0:00:08]} Nxd5 {[%emt 0:00:03]} 6. e4 {[%emt 0:00:22]} Nb6 {[%emt 0:00:20]} 7. Ne2 {[%emt 0:00:07] [#]} {Predecessor:} c5 $146 {D72: Fianchetto Grünfeld: 5 cxd5 Nxd5 6 e4 Nb6 (without Nf3).} 8. d5 O-O 9. O-O e6 10. a4 exd5 11. exd5 Na6 12. Nec3 Nc4 13. Na3 Ne5 14. h3 Nb4 15. Ne4 b6 16. Bg5 f6 17. Bf4 Ned3 18. Qb3 Nxf4 19. gxf4 Kh8 20. Rad1 {1-0 (58) Keymer,V (2607)-Grandelius,N (2666) Malmo 2021} *

[Event "XIII Marques de Pombal 2022"]
[Site "Pombal"]
[Date "2022.10.07"]
[Round "4.3"]
[White "Goncalves, Samuel Jesus Pereira"]
[Black "Farias, David Nuno M E"]
[Result "0-1"]
[ECO "D72"]
[WhiteElo "2072"]
[BlackElo "1863"]
[Annotator "TA"]
[PlyCount "120"]
[EventDate "2022.09.28"]
[EventType "swiss"]
[EventCountry "POR"]
[SourceTitle "playchess.com"]
[Source "ChessBase"]
[SourceQuality "1"]
[TimeControl "5400+30"]

{[%evp 22,120,39,38,54,28,77,23,36,22,46,37,87,82,70,73,161,90,161,193,158,120,106,48,44,28,37,0,0,-18,10,-24,-20,-112,-110,-112,-109,-108,-108,-496,0,0,0,0,0,0,0,0,0,0,0,0,0,0,0,0,0,0,0,0,0,0,0,-498,-486,-484,-464,-550,-567,-542,-532,-864,-869,-691,-491,-29990,-1395,-593,-420,-387,-383,-6195,-2648,-29976,-29976,-29976,-29977,-29977,-29978,-29978,-29979,-29979,-29980,-29980,-29980,-29980,-29978,-29982,-29983,-29981,-29977]} 1. d4 {[%emt 0:00:31]} Nf6 {[%emt 0:00:06]} 2. c4 {[%emt 0:00:06]} g6 {[%emt 0:00:02]} 3. g3 {[%emt 0:00:55]} Bg7 {[%emt 0:00:09]} 4. Bg2 {[%emt 0:00:06]} d5 {[%emt 0:00:20]} 5. cxd5 {[%emt 0:00:08]} Nxd5 {[%emt 0:00:03]} 6. e4 {[%emt 0:00:22]} Nb6 {[%emt 0:00:20]} 7. Ne2 {[%emt 0:00:07]} O-O {[%emt 0:06:20]} 8. Nbc3 {[%emt 0:06:40]} Nc6 {[%emt 0:01:45]} 9. d5 {[%emt 0:02:32]} Na5 {[%emt 0:00:37]} 10. O-O {[%emt 0:04:46]} c6 {[%emt 0:13:33]} 11. b3 {[%emt 0:12:31]} cxd5 {[%emt 0:06:33]} 12. exd5 {[%emt 0:00:27]} Bg4 {[%emt 0:03:58] Threatens to win with ...Bxc3. D72: Fianchetto Grünfeld: 5 cxd5 Nxd5 6 e4 Nb6 (without Nf3).} 13. f3 {[%emt 0:02:53]} Bd7 {[%emt 0:04:32]} 14. Ba3 {[%emt 0:17:32]} (14. Bg5 $16) 14... Re8 $11 {[%emt 0:14:40] White has an edge.} 15. Rc1 {[%emt 0:02:51] [#]} Nc8 $146 {[%emt 0:10:06]} ({Predecessor:} 15... Rc8 16. Kh1 e6 17. d6 Bc6 18. Bb4 Nd7 19. Qd2 b6 20. Ne4 Nb7 21. Nd4 Bxe4 22. fxe4 {1-0 (32) Mammadov,S (2313)-Atabayev,Y (2446) Nakhchivan 2022}) 16. Ne4 {[%emt 0:08:24]} Bb5 {[%emt 0:07:16]} ({Black should play} 16... Nd6 $14) 17. Re1 $16 {[%emt 0:06:27]} Nd6 {[%emt 0:02:59]} 18. Nd4 {[%emt 0:02:52]} Ba6 {[%emt 0:01:47]} (18... Bd7 $16) 19. Kh1 {[%emt 0:05:34]} ({Much less strong is} 19. Nxd6 $6 exd6 20. Qd2 (20. Rxe8+ Qxe8 21. Qd2 Qe5 $16) 20... Rc8 $16) (19. Bh3 $18) 19... Nb5 {[%emt 0:05:26]} (19... Ndc4 $16 20. bxc4 Nxc4) 20. Nxb5 $18 {[%emt 0:00:56]} Bxb5 {[%emt 0:00:01]} 21. Qd2 {[%emt 0:07:13]} b6 {[%emt 0:06:04]} 22. Qb4 {[%emt 0:06:03]} (22. f4 $16) 22... a6 $14 {[%emt 0:04:14]} (22... Qxd5 $2 23. Red1 Qe5 24. f4 $18) 23. Red1 {[%emt 0:07:00]} Nb7 {[%emt 0:07:41]} 24. Rd2 {[%emt 0:02:27]} Rc8 {[%emt 0:01:04]} 25. Rcd1 {[%emt 0:00:16]} h6 {[%emt 0:02:25]} 26. Bh3 {[%emt 0:00:49]} f5 {[%emt 0:00:14]} 27. d6 {[%emt 0:00:15]} (27. Nf2 $11) 27... exd6 $17 {[%emt 0:01:13]} (27... fxe4 $2 28. d7 (28. dxe7 Qc7 $16) 28... Rc7 29. dxe8=N Qxe8 30. Qxe4 $18) 28. Nxd6 {[%emt 0:00:53]} Nxd6 {[%emt 0:00:28]} 29. Rxd6 {[%emt 0:00:08]} Qg5 {[%emt 0:00:30]} 30. Bg2 $2 {[%emt 0:03:02][%mdl 8192]} (30. Qd2 $17 {nothing else works.}) 30... Bf8 $2 {[%emt 0:00:26]} (30... Rc2 $19 31. Re1 Ree2 32. Rxe2 Rxe2) 31. Qd4 {[%emt 0:00:40] Intending Bb2 and mate.} Bxd6 {[%emt 0:00:32]} 32. Qd5+ $1 {[%emt 0:00:10]} Kh7 {[%emt 0:00:34]} 33. Qf7+ $1 {[%emt 0:00:50]} Kh8 {[%emt 0:00:07]} 34. f4 {[%emt 0:00:26]} Qh5 {[%emt 0:00:45]} (34... Bxf4 $2 35. gxf4 Qxg2+ 36. Kxg2 $18) 35. Bb2+ Be5 $1 {[%emt 0:00:09]} 36. Bxe5+ {[%emt 0:01:06][%mdl 64] [#] Remove Defender} Rxe5 {[%emt 0:00:07]} 37. Qf6+ {[%emt 0:00:24]} Kg8 {[%emt 0:00:47]} 38. Bd5+ {[%emt 0:00:35]} Rxd5 {[%emt 0:00:18]} 39. Qe6+ {[%emt 0:00:04]} Kg7 {[%emt 0:01:16]} 40. Qe7+ {[%emt 0:00:48]} Kg8 {[%emt 0:00:10]} 41. Qe6+ {[%emt 0:00:30]} Kf8 {[%emt 0:00:26]} 42. Qxc8+ $4 {[%emt 0:00:18][%mdl 8192]} (42. Qf6+ $1 $11 {and White has nothing to worry.} Kg8 43. Qe6+) 42... Be8 $19 {[%emt 0:00:06]} 43. Re1 {[%emt 0:00:45]} g5 {[%emt 0:00:38]} ({Not} 43... Qf3+ 44. Kg1 Kg7 45. Qxe8 $11) 44. Qe6 {[%emt 0:00:23]} Bf7 {[%emt 0:00:22]} 45. Qxb6 {[%emt 0:00:37]} Rd1 {[%emt 0:01:15]} 46. Qb8+ {[%emt 0:00:32]} Kg7 {[%emt 0:00:21]} 47. Qe5+ {[%emt 0:00:07]} Kg8 {[%emt 0:00:15]} 48. fxg5 {[%emt 0:00:50] [#]} (48. Rxd1 $19 Qxd1+ 49. Kg2) 48... Rxe1+ {[%emt 0:00:56]} (48... Qf3+ $142 49. Kg1 Rd2 50. Qb8+ Kh7 51. g6+ Kxg6 52. Qd6+ Rxd6 53. Rf1 Qe3+ 54. Kg2 Rd2+ 55. Kh3 Qe4 56. Rxf5 Kxf5 57. a4 Qg4#) 49. Qxe1 {[%emt 0:00:02]} Bd5+ {[%emt 0:00:29]} 50. Kg1 {[%emt 0:00:01]} hxg5 {[%emt 0:00:12] And now ...Qf3 would win.} 51. Qd2 $2 {[%emt 0:01:33]} (51. Qf1) 51... Qf3 {[%emt 0:00:23] ( -> ...Kf7)} 52. Qxg5+ {[%emt 0:00:10]} Kf7 {[%emt 0:00:06][%csl Gd5][%cal Rf3g2] Black mates.} 53. Qd2 {[%emt 0:00:22]} Qh1+ {[%emt 0:00:04]} 54. Kf2 {[%emt 0:00:08]} Qxh2+ {[%emt 0:00:04]} 55. Ke3 {[%emt 0:00:38]} Qxd2+ {[%emt 0:00:18]} 56. Kxd2 {[%emt 0:00:02]} Kf6 {[%emt 0:00:38]} 57. Kd3 {[%emt 0:01:27]} Kg5 {[%emt 0:00:08]} 58. Kd4 {[%emt 0:00:32]} Bg2 {[%emt 0:00:30]} 59. Ke3 {[%emt 0:00:38]} Kg4 {[%emt 0:00:08]} 60. Kf2 {[%emt 0:00:04]} Bd5 {[%emt 0:00:15] Both players deserved the win here.  Weighted Error Value: White=0.84/Black=0.37} 0-1

[Event "XIII Marques de Pombal 2022"]
[Site "Pombal"]
[Date "2022.10.06"]
[Round "4.4"]
[White "Padeiro, Jose Joao Tato"]
[Black "Silva, Reinaldo Joao David "]
[Result "1-0"]
[ECO "A05"]
[WhiteElo "2215"]
[BlackElo "1775"]
[Annotator "TA"]
[PlyCount "77"]
[EventDate "2022.09.28"]
[EventType "swiss"]
[EventCountry "POR"]
[SourceTitle "playchess.com"]
[Source "ChessBase"]
[SourceQuality "1"]
[TimeControl "5400+30"]

{[%evp 18,77,8,9,17,22,26,19,35,35,39,29,61,52,66,42,86,72,102,92,101,98,166,137,139,127,152,153,179,194,264,259,239,236,260,259,232,254,318,318,297,314,393,389,437,389,534,517,530,525,505,425,692,673,663,657,29977,29979,29978,29979,5402,5397]} 1. Nf3 {[%emt 0:01:47]} Nf6 {[%emt 0:00:12]} 2. c4 {[%emt 0:00:05]} c5 {[%emt 0:00:09]} 3. Nc3 {[%emt 0:00:22]} g6 {[%emt 0:00:09]} 4. d4 {[%emt 0:01:48]} cxd4 {[%emt 0:00:22]} 5. Nxd4 {[%emt 0:00:04]} Bg7 {[%emt 0:00:14]} 6. g3 {[%emt 0:00:23]} Nc6 {[%emt 0:00:17]} 7. Bg2 {[%emt 0:00:06]} O-O {[%emt 0:00:33]} 8. O-O {[%emt 0:00:08]} Qb6 {[%emt 0:11:31] 8...Qa5 gains popularity.} 9. Nb3 {[%emt 0:00:55]} d6 {[%emt 0:04:52]} 10. Bg5 {[%emt 0:00:49]} Be6 {[%emt 0:01:03] A39: Symmetrical English vs ...g6: 4 Bg2 Bg7 5 Nf3 Nf6 6 0-0 0-0 7 d4.} 11. Nd5 {[%emt 0:01:23]} Bxd5 {[%emt 0:02:19]} 12. cxd5 {[%emt 0:00:06]} Ne5 {[%emt 0:02:04] The position is equal.} 13. Be3 {[%emt 0:02:34][%cal Bg5e3,Be3d4,Bd4c3][%mdl 32]} Qa6 {[%emt 0:07:25]} 14. Bd4 {[%emt 0:01:39]} Ned7 {[%emt 0:04:19]} 15. e4 {[%emt 0:04:45]} Rac8 {[%emt 0:04:37]} 16. Re1 {[%emt 0:01:22]} b6 {[%emt 0:00:46] [#]} 17. Bc3 $146 {[%emt 0:15:24] White stays focused until the end.} ({Predecessor:} 17. f4 Nc5 18. Nxc5 bxc5 19. Bc3 Ne8 20. e5 Nc7 21. a4 Rfe8 22. Bf1 Qb7 23. Bc4 {½-½ (37) Splichal,S (2168)-Vecera,P (2039) Czech Republic 2016}) 17... Qa4 {[%emt 0:09:27]} 18. Nd4 {[%emt 0:01:28]} Qxd1 {[%emt 0:02:10]} 19. Raxd1 {[%emt 0:00:04]} Nc5 {[%emt 0:01:28]} (19... Nh5 $16 {is a better defense.}) 20. Nc6 {[%emt 0:00:58]} Rc7 {[%emt 0:00:37]} 21. e5 {[%emt 0:02:45]} Ne8 {[%emt 0:11:01] [#]} 22. f4 $1 {[%emt 0:00:25] White has more active pieces. The black rooks are badly placed.} h5 {[%emt 0:02:06]} 23. b4 {[%emt 0:02:35][%cal Bb2b4,Bb4b5,Bb5c6][%mdl 32]} Na6 {[%emt 0:00:28]} (23... Na4 $142) 24. Bf1 {[%emt 0:03:28]} Nb8 {[%emt 0:00:18]} 25. b5 {[%emt 0:03:59]} Nxc6 {[%emt 0:02:23]} 26. bxc6 {[%emt 0:00:25]} f6 {[%emt 0:04:40]} 27. Bd3 {[%emt 0:05:22]} fxe5 {[%emt 0:05:35]} 28. fxe5 {[%emt 0:00:14]} ({Less strong is} 28. Bxg6 exf4 29. Bd2 fxg3 $16) 28... Kh7 {[%emt 0:03:57]} 29. exd6 {[%emt 0:03:33]} exd6 {[%emt 0:00:34]} 30. Bb4 {[%emt 0:01:26] This bishop pair is nice.} Bd4+ {[%emt 0:06:03]} 31. Kh1 {[%emt 0:00:06]} Bc5 {[%emt 0:00:05]} 32. Bxc5 {[%emt 0:00:15]} bxc5 {[%emt 0:00:06]} 33. Re6 {[%emt 0:00:33]} Rg7 {[%emt 0:02:43]} 34. Rde1 {[%emt 0:02:09]} Nf6 {[%emt 0:00:23]} (34... Rgg8 $142 35. Kg1 a6) 35. Rf1 $18 {[%emt 0:00:12]} Rgf7 {[%emt 0:01:48]} 36. Rxd6 {[%emt 0:01:02]} Kh8 {[%emt 0:00:54] [#]} 37. Rdxf6 $1 {[%emt 0:01:40][%mdl 512]} Rxf6 {[%emt 0:00:08]} 38. Rxf6 {[%emt 0:00:04]} Rxf6 {[%emt 0:00:06]} 39. c7 {[%emt 0:00:04] Weighted Error Value: White=0.05 (flawless) /Black=0.59} 1-0

[Event "XIII Marques de Pombal 2022"]
[Site "Pombal"]
[Date "2022.10.06"]
[Round "4.5"]
[White "Ferreira, Hugo Miguel Da Costa"]
[Black "Santos, Julio Fernandes dos"]
[Result "1-0"]
[ECO "D00"]
[WhiteElo "2101"]
[BlackElo "1760"]
[Annotator "TA"]
[PlyCount "21"]
[EventDate "2022.09.28"]
[EventType "swiss"]
[EventCountry "POR"]
[SourceTitle "playchess.com"]
[Source "ChessBase"]
[SourceQuality "1"]
[TimeControl "5400+30"]

{[%evp 9,21,-10,-18,-12,-15,-66,-63,-62,-45,-83,166,178,874,852]} 1. d4 d5 2. Bf4 Nf6 3. Nc3 Bf5 4. e3 e6 5. Nb5 Bb4+ 6. c3 {D00: 1 d4 d5: Unusual lines.} Ba5 7. Qa4 (7. Nf3 $11) 7... Nc6 $15 {[#]} 8. Na3 $146 ({Predecessor:} 8. g4 Bg6 9. O-O-O a6 10. Na3 b5 11. Qb3 b4 12. Qa4 Qd7 13. Nc2 bxc3 14. b3 {0-1 (41) Nishizawa,C (1503)-Felix,R (1907) Brasilia 2016}) 8... a6 {Inhibits Bb5.} 9. b4 b5 $2 {[#]} (9... Bb6 $17 {stays on course. Hoping for ...Ne4.} 10. Ne2 O-O) 10. Nxb5 $1 $18 Bxb4 $2 (10... axb5 $2 11. Bxb5 O-O 12. Bxc6 Bxb4 13. Qxb4 $18) (10... O-O) 11. Nxc7+ {Weighted Error Value: White=0.20 (precise) /Black=0.74} ({Less strong is} 11. cxb4 axb5 12. Qxb5 Qd7 $16) 1-0

[Event "XIII Marques de Pombal 2022"]
[Site "Pombal"]
[Date "2022.10.06"]
[Round "4.6"]
[White "Peixoto, Helio Ricardo Soutin"]
[Black "Alves, Fernando Pereira Rib"]
[Result "0-1"]
[ECO "A04"]
[WhiteElo "1969"]
[BlackElo "1526"]
[Annotator "TA"]
[PlyCount "46"]
[EventDate "2022.09.28"]
[EventType "swiss"]
[EventCountry "POR"]
[SourceTitle "playchess.com"]
[Source "ChessBase"]
[SourceQuality "1"]
[TimeControl "5400+30"]

{[%evp 9,46,0,14,0,4,-28,-27,-8,12,0,25,22,56,29,29,-32,-29,-39,-19,-31,0,0,0,0,-56,-37,-14,-548,-553,-559,-539,-791,-797,-797,-791,-787,-770,-845,-820]} 1. Nf3 {[%emt 0:00:10]} Nc6 {[%emt 0:00:18]} 2. d3 {[%emt 0:00:16]} d5 {[%emt 0:03:09]} 3. Nbd2 {[%emt 0:00:23]} Nf6 {[%emt 0:00:35]} 4. g3 {[%emt 0:01:25]} Bg4 {[%emt 0:00:48]} 5. h3 {[%emt 0:01:49]} Bh5 {[%emt 0:00:40]} 6. Bg2 {[%emt 0:00:22] A06: Réti Opening: 1 Nf3 d5.} e5 {[%emt 0:03:35]} 7. e4 {[%emt 0:12:01]} dxe4 {[%emt 0:03:47]} 8. dxe4 {[%emt 0:00:16] Black has an edge.} Bc5 {[%emt 0:01:57]} 9. O-O {[%emt 0:02:05]} Qe7 {[%emt 0:05:03]} 10. c3 {[%emt 0:00:57] [#]} O-O-O $146 {[%emt 0:15:04]} ({Predecessor:} 10... O-O 11. Qc2 a5 12. Nc4 Bxf3 13. Bxf3 Qe6 14. Ne3 Qxh3 15. Bg2 Qh5 16. Qd1 Rad8 17. Qxh5 Nxh5 {0-1 (33) Bimpson,T (1973)-McQuillan,S (1960) England 2019}) 11. Qa4 {[%emt 0:00:59]} Rd3 {[%emt 0:04:13]} 12. Qc4 {[%emt 0:05:35]} (12. Qc2 $11 Rhd8 13. b4) 12... Rhd8 $15 {[%emt 0:03:55]} 13. b4 {[%emt 0:00:25]} Bb6 $36 {[%emt 0:04:35][%mdl 2048] Threatening ...Qe6. Black has the initiative.} 14. a4 $1 {[%emt 0:01:30] [#] aiming for a5.} a5 {[%emt 0:15:48][%cal Ra5b4]} 15. b5 {[%emt 0:10:31]} Nb8 {[%emt 0:03:20]} 16. g4 {[%emt 0:03:22]} ({Better is} 16. Ra2 $11) 16... Nxg4 {[%emt 0:08:53]} 17. hxg4 {[%emt 0:00:13]} Bxg4 {[%emt 0:00:12] [#] Hoping for ...Be6.} 18. Ba3 $2 {[%emt 0:08:14][%mdl 8192] This move loses the game for White.} (18. Qa2 $1 $11) 18... Qf6 $19 {[%emt 0:02:25] Black is clearly winning.} 19. Bc5 {[%emt 0:00:23]} Be6 {[%emt 0:07:02]} 20. Qxd3 {[%emt 0:08:46]} Rxd3 {[%emt 0:00:17]} 21. Bxb6 {[%emt 0:00:45]} cxb6 {[%emt 0:00:19]} 22. Rfe1 {[%emt 0:05:39]} Qf4 {[%emt 0:01:36]} 23. Rad1 {[%emt 0:05:32]} Nd7 {[%emt 0:02:03] Weighted Error Value: White=0.47/Black=0.09 (flawless)} 0-1